fUSD/lending_fUSD_20240317
["ID","MTS","AMOUNT","RATE_DAILY","PERIOD"]
[319310529,1710656611664,-500.0,0.00015498,2]
[319310530,1710656611685,-318.97,0.00015498,2]
[319310531,1710656611705,-503.44125404,0.00015498,2]
[319310532,1710656611725,-500.0,0.00015498,2]
[319310533,1710656611746,-500.0,0.00015498,2]
[319310534,1710656611766,-500.0,0.00015498,2]
[319310535,1710656611786,-500.0,0.00015498,2]
[319310536,1710656611809,-500.0,0.00015498,2]
[319310537,1710656611830,-500.0,0.00015498,2]
[319310538,1710656611850,-336.55,0.00015498,2]
[319310539,1710656611870,-500.0,0.00015498,2]
[319310540,1710656611891,-522.26559909,0.00015498,2]
[319310541,1710656611911,-500.0,0.00015498,2]
[319310542,1710656611931,-500.0,0.00015498,2]
[319310543,1710656611951,-500.0,0.00015498,2]
[319310544,1710656611971,-500.0,0.00015498,2]
[319310545,1710656611992,-500.0,0.00015498,2]
[319310546,1710656612013,-500.0,0.00015498,2]
[319310547,1710656612032,-500.0,0.00015498,2]
[319310548,1710656612052,-500.0,0.00015498,2]
[319310549,1710656612073,-498.77693836,0.00015498,2]
[319310550,1710656612093,-500.0,0.00015498,2]
[319310551,1710656612113,-436.5,0.00015498,2]
[319310552,1710656612134,-532.44,0.00015498,2]
[319310553,1710656612154,-500.0,0.00015498,2]
[319310554,1710656612182,-522.33860142,0.00015498,2]
[319310555,1710656612205,-500.0,0.00015498,2]
[319310556,1710656612227,-512.31107617,0.00015498,2]
[319310557,1710656612250,-201.4,0.00015498,2]
[319310558,1710656612272,-502.78,0.00015498,2]
[319310559,1710656612295,-500.0,0.00015498,2]
[319310560,1710656612317,-500.0,0.00015498,2]
[319310561,1710656612338,-500.0,0.00015498,2]
[319310562,1710656612362,-500.0,0.00015498,2]
[319310563,1710656612393,-500.0,0.00015498,2]
[319310564,1710656612419,-500.0,0.00015498,2]
[319310565,1710656612444,-500.0,0.00015498,2]
[319310566,1710656612470,-500.0,0.00015498,2]
[319310567,1710656612497,-170.76,0.00015498,2]
[319310568,1710656612524,-500.0,0.00015498,2]
[319310569,1710656612552,-500.0,0.00015498,2]
[319310570,1710656612580,-500.0,0.00015498,2]
[319310571,1710656612604,-595.4,0.00015498,2]
[319310572,1710656612632,-500.0,0.00015498,2]
[319310573,1710656612656,-500.0,0.00015498,2]
[319310574,1710656612679,-500.0,0.00015498,2]
[319310575,1710656612701,-500.0,0.00015498,2]
[319310576,1710656612722,-500.0,0.00015498,2]
[319310577,1710656612754,-587.65,0.00015498,2]
[319310578,1710656612781,-500.0,0.00015498,2]
[319310579,1710656612804,-500.0,0.00015498,2]
[319310580,1710656612826,-500.0,0.00015498,2]
[319310581,1710656612848,-500.0,0.00015498,2]
[319310582,1710656612874,-500.0,0.00015498,2]
[319310583,1710656612898,-500.0,0.00015498,2]
[319310584,1710656612920,-500.0,0.00015498,2]
[319310585,1710656612943,-500.0,0.00015498,2]
[319310586,1710656612966,-500.0,0.00015498,2]
[319310587,1710656612988,-500.0,0.00015498,2]
[319310588,1710656613010,-500.0,0.00015498,2]
[319310589,1710656613031,-500.0,0.00015498,2]
[319310590,1710656613052,-500.0,0.00015498,2]
[319310591,1710656613072,-500.0,0.00015498,2]
[319310592,1710656613093,-500.0,0.00015498,2]
[319310593,1710656613114,-500.0,0.00015498,2]
[319310594,1710656613137,-500.0,0.00015498,2]
[319310595,1710656613158,-500.0,0.00015498,2]
[319310596,1710656613179,-500.0,0.00015498,2]
[319310597,1710656613200,-500.0,0.00015498,2]
[319310598,1710656613224,-303.13,0.00015498,2]
[319310599,1710656613246,-500.0,0.00015498,2]
[319310600,1710656613269,-500.0,0.00015498,2]
[319310601,1710656613294,-500.0,0.00015498,2]
[319310602,1710656613318,-500.0,0.00015498,2]
[319310603,1710656613341,-500.0,0.00015498,2]
[319310604,1710656613367,-500.0,0.00015498,2]
[319310605,1710656613389,-500.0,0.00015498,2]
[319310606,1710656613410,-500.0,0.00015498,2]
[319310607,1710656613433,-500.0,0.00015498,2]
[319310608,1710656613459,-500.0,0.00015498,2]
[319310609,1710656613480,-500.0,0.00015498,2]
[319310610,1710656613504,-319.17206416,0.00015498,2]
[319310611,1710656613526,-500.0,0.00015498,2]
[319310612,1710656613551,-500.0,0.00015498,2]
[319310613,1710656613573,-214.20757972,0.00015498,2]
[319310614,1710656613595,-500.0,0.00015498,2]
[319310615,1710656613616,-774.81879031,0.00015498,2]
[319310616,1710656613639,-500.0,0.00015498,2]
[319310617,1710656613661,-216.07731441,0.00015498,2]
[319310618,1710656613684,-1934.14289984,0.00015498,2]
[319310619,1710656613706,-644.29524626,0.00015498,2]
[319310620,1710656613729,-500.0,0.00015498,2]
[319310621,1710656613752,-153.94869974,0.00015498,2]
[319310622,1710656613775,-500.0,0.00015498,2]
[319310623,1710656613795,-500.0,0.00015498,2]
[319310624,1710656613816,-500.0,0.00015498,2]
[319310625,1710656613839,-500.0,0.00015498,2]
[319310626,1710656613862,-500.0,0.00015498,2]
[319310627,1710656613886,-500.0,0.00015498,2]
[319310628,1710656613908,-205.41038657,0.00015498,2]
[319310629,1710656613930,-547.78269784,0.00015498,2]
[319310630,1710656613952,-533.30997016,0.00015498,2]
[319310631,1710656613973,-1379.23684559,0.00015498,2]
[319310632,1710656613995,-7614.68275032,0.00015499,2]
[319310633,1710656614015,-349.72671639,0.00015499,5]
[319310634,1710656614036,-106597.75044105,0.00015499,2]
[319310635,1710656614057,-500.0,0.00015499,2]
[319310636,1710656614077,-588.41,0.00015499,2]
[319310637,1710656614097,-500.0,0.00015499,2]
[319310638,1710656614116,-500.0,0.00015499,2]
[319310639,1710656614137,-500.0,0.00015499,2]
[319310640,1710656614163,-500.0,0.00015499,2]
[319310641,1710656614187,-500.0,0.00015499,2]
[319310642,1710656614209,-500.0,0.00015499,2]
[319310643,1710656614234,-619.3,0.00015499,2]
[319310644,1710656614257,-500.0,0.00015499,2]
[319310645,1710656614279,-500.0,0.00015499,2]
[319310646,1710656614302,-500.0,0.00015499,2]
[319310647,1710656614324,-500.0,0.00015499,2]
[319310648,1710656614348,-409.32,0.00015499,2]
[319310649,1710656614373,-502.40980826,0.00015499,2]
[319310650,1710656614396,-500.0,0.00015499,2]
[319310651,1710656614419,-500.0,0.00015499,2]
[319310652,1710656614443,-500.0,0.00015499,2]
[319310653,1710656614464,-299.73,0.00015499,2]
[319310654,1710656614487,-500.0,0.00015499,2]
[319310655,1710656614507,-500.0,0.00015499,2]
[319310656,1710656614528,-500.0,0.00015499,2]
[319310657,1710656614549,-500.0,0.00015499,2]
[319310658,1710656614573,-500.0,0.00015499,2]
[319310659,1710656614595,-500.0,0.00015499,2]
[319310660,1710656614616,-500.0,0.00015499,2]
[319310661,1710656614643,-500.0,0.00015499,2]
[319310662,1710656614670,-500.0,0.00015499,2]
[319310663,1710656614691,-500.0,0.00015499,2]
[319310664,1710656614718,-364.7,0.00015499,2]
[319310665,1710656614741,-500.0,0.00015499,2]
[319310666,1710656614763,-500.0,0.00015499,2]
[319310667,1710656614786,-274.69126272,0.00015499,2]
[319310668,1710656614814,-500.0,0.00015499,2]
[319310669,1710656614840,-500.0,0.00015499,2]
[319310670,1710656614865,-500.0,0.00015499,2]
[319310671,1710656614891,-500.0,0.00015499,2]
[319310672,1710656614915,-500.0,0.00015499,2]
[319310673,1710656614938,-500.0,0.00015499,2]
[319310674,1710656614959,-500.0,0.00015499,2]
[319310675,1710656614982,-500.0,0.00015499,2]
[319310676,1710656615006,-500.0,0.00015499,2]
[319310677,1710656615030,-500.0,0.00015499,2]
[319310678,1710656615054,-500.0,0.00015499,2]
[319310679,1710656615079,-500.0,0.00015499,2]
[319310680,1710656615103,-500.0,0.00015499,2]
[319310681,1710656615127,-500.0,0.00015499,2]
[319310682,1710656615154,-500.0,0.00015499,2]
[319310683,1710656615181,-500.0,0.00015499,2]
[319310684,1710656615204,-500.0,0.00015499,2]
[319310685,1710656615227,-571.95,0.00015499,2]
[319310686,1710656615251,-500.0,0.00015499,2]
[319310687,1710656615275,-500.0,0.00015499,2]
[319310688,1710656615298,-500.0,0.00015499,2]
[319310689,1710656615326,-500.0,0.00015499,2]
[319310690,1710656615351,-602.84,0.00015499,2]
[319310691,1710656615378,-500.0,0.00015499,2]
[319310692,1710656615404,-641.1,0.00015499,2]
[319310693,1710656615430,-500.0,0.00015499,2]
[319310694,1710656615454,-500.0,0.00015499,2]
[319310695,1710656615477,-500.0,0.00015499,2]
[319310696,1710656615499,-500.0,0.00015499,2]
[319310697,1710656615522,-239.04,0.00015499,2]
[319310698,1710656615546,-500.0,0.00015499,2]
[319310699,1710656615574,-500.0,0.00015499,2]
[319310700,1710656615599,-500.0,0.00015499,2]
[319310701,1710656615624,-500.0,0.00015499,2]
[319310702,1710656615653,-500.0,0.00015499,2]
[319310703,1710656615679,-500.0,0.00015499,2]
[319310704,1710656615705,-500.0,0.00015499,2]
[319310705,1710656615731,-500.0,0.00015499,2]
[319310706,1710656615756,-500.0,0.00015499,2]
[319310707,1710656615780,-500.0,0.00015499,2]
[319310708,1710656615805,-500.0,0.00015499,2]
[319310709,1710656615829,-535.58299515,0.00015499,2]
[319310710,1710656615854,-500.0,0.00015499,2]
[319310711,1710656615878,-500.0,0.00015499,2]
[319310712,1710656615904,-500.0,0.00015499,2]
[319310713,1710656615929,-500.0,0.00015499,2]
[319310714,1710656615954,-500.0,0.00015499,2]
[319310715,1710656615980,-500.0,0.00015499,2]
[319310716,1710656616004,-500.0,0.00015499,2]
[319310717,1710656616028,-500.0,0.00015499,2]
[319310718,1710656616051,-500.0,0.00015499,2]
[319310719,1710656616073,-500.0,0.00015499,2]
[319310720,1710656616096,-500.0,0.00015499,2]
[319310721,1710656616118,-364.84479997,0.00015499,2]
[319310722,1710656616143,-500.0,0.00015499,2]
[319310723,1710656616167,-500.0,0.00015499,2]
[319310724,1710656616192,-500.0,0.00015499,2]
[319310725,1710656616215,-267.84,0.00015499,2]
[319310726,1710656616239,-500.0,0.00015499,2]
[319310727,1710656616265,-500.0,0.00015499,2]
[319310728,1710656616292,-500.0,0.00015499,2]
[319310729,1710656616318,-500.0,0.00015499,2]
[319310730,1710656616341,-500.0,0.00015499,2]
[319310731,1710656616366,-536.2939,0.00015499,2]
[319310732,1710656616394,-500.0,0.00015499,2]
[319310733,1710656616418,-500.0,0.00015499,2]
[319310734,1710656616441,-500.0,0.00015499,2]
[319310735,1710656616465,-500.0,0.00015499,2]
[319310736,1710656616488,-500.0,0.00015499,2]
[319310737,1710656616512,-604.69621794,0.00015499,2]
[319310738,1710656616536,-500.0,0.00015499,2]
[319310739,1710656616559,-457.76,0.00015499,2]
[319310740,1710656616582,-500.0,0.00015499,2]
[319310741,1710656616604,-500.0,0.00015499,2]
[319310742,1710656616628,-567.05,0.00015499,2]
[319310743,1710656616655,-500.0,0.00015499,2]
[319310744,1710656616677,-500.0,0.00015499,2]
[319310745,1710656616699,-500.0,0.00015499,2]
[319310746,1710656616722,-500.0,0.00015499,2]
[319310747,1710656616744,-195.32708078,0.00015499,2]
[319310748,1710656616766,-500.0,0.00015499,2]
[319310749,1710656616788,-500.0,0.00015499,2]
[319310750,1710656616810,-500.0,0.00015499,2]
[319310751,1710656616831,-500.0,0.00015499,2]
[319310752,1710656616853,-302.19,0.00015499,2]
[319310753,1710656616875,-500.0,0.00015499,2]
[319310754,1710656616900,-500.0,0.00015499,2]
[319310755,1710656616925,-500.0,0.00015499,2]
[319310756,1710656616948,-500.0,0.00015499,2]
[319310757,1710656616970,-500.0,0.00015499,2]
[319310758,1710656616992,-500.0,0.00015499,2]
[319310759,1710656617015,-211.4,0.00015499,2]
[319310760,1710656617039,-500.0,0.00015499,2]
[319310761,1710656617061,-500.0,0.00015499,2]
[319310762,1710656617083,-500.0,0.00015499,2]
[319310763,1710656617109,-500.0,0.00015499,2]
[319310764,1710656617132,-500.0,0.00015499,2]
[319310765,1710656617158,-500.0,0.00015499,2]
[319310766,1710656617181,-500.0,0.00015499,2]
[319310767,1710656617204,-401.51,0.00015499,2]
[319310768,1710656617227,-2167.78,0.00015499,2]
[319310769,1710656617249,-2167.78,0.00015499,2]
[319310770,1710656617272,-2167.78,0.00015499,2]
[319310771,1710656617294,-2167.78,0.00015499,2]
[319310772,1710656617316,-2167.78,0.00015499,2]
[319310773,1710656617339,-2167.78,0.00015499,2]
[319310774,1710656617752,-2167.78,0.00015499,2]
[319310775,1710656617775,-2167.78,0.00015499,2]
[319310776,1710656617797,-2167.78,0.00015499,2]
[319310777,1710656617818,-2167.78,0.00015499,2]
[319310778,1710656617839,-2167.78,0.00015499,2]
[319310779,1710656617860,-2167.78,0.00015499,2]
[319310780,1710656617881,-2167.78,0.00015499,2]
[319310781,1710656617904,-2167.78,0.00015499,2]
[319310782,1710656617925,-2167.78,0.00015499,2]
[319310783,1710656617946,-2167.78,0.00015499,2]
[319310784,1710656617970,-2167.78,0.00015499,2]
[319310785,1710656617991,-2167.78,0.00015499,2]
[319310786,1710656618012,-2167.78,0.00015499,2]
[319310787,1710656618033,-2167.78,0.00015499,2]
[319310788,1710656618054,-2167.78,0.00015499,2]
[319310789,1710656618080,-2167.78,0.00015499,2]
[319310790,1710656618101,-2167.78,0.00015499,2]
[319310791,1710656618122,-2167.7830824,0.00015499,2]
[319310792,1710656618146,-500.0,0.00015499,2]
[319310793,1710656618167,-545.94,0.00015499,2]
[319310794,1710656618189,-500.0,0.00015499,2]
[319310795,1710656618209,-500.0,0.00015499,2]
[319310796,1710656618230,-500.0,0.00015499,2]
[319310797,1710656618252,-500.0,0.00015499,2]
[319310798,1710656618273,-500.0,0.00015499,2]
[319310799,1710656618295,-500.0,0.00015499,2]
[319310800,1710656618316,-500.0,0.00015499,2]
[319310801,1710656618340,-500.0,0.00015499,2]
[319310802,1710656618365,-500.0,0.00015499,2]
[319310803,1710656618389,-500.0,0.00015499,2]
[319310804,1710656618414,-500.0,0.00015499,2]
[319310805,1710656618438,-500.0,0.00015499,2]
[319310806,1710656618462,-500.0,0.00015499,2]
[319310807,1710656618486,-500.0,0.00015499,2]
[319310808,1710656618507,-500.0,0.00015499,2]
[319310809,1710656618529,-500.0,0.00015499,2]
[319310810,1710656618549,-500.0,0.00015499,2]
[319310811,1710656618571,-500.0,0.00015499,2]
[319310812,1710656618593,-500.0,0.00015499,2]
[319310813,1710656618614,-413.2,0.00015499,2]
[319310814,1710656618638,-500.0,0.00015499,2]
[319310815,1710656618659,-500.0,0.00015499,2]
[319310816,1710656618681,-500.0,0.00015499,2]
[319310817,1710656618702,-500.0,0.00015499,2]
[319310818,1710656618724,-500.0,0.00015499,2]
[319310819,1710656618746,-500.0,0.00015499,2]
[319310820,1710656618767,-500.0,0.00015499,2]
[319310821,1710656618788,-500.0,0.00015499,2]
[319310822,1710656618811,-500.0,0.00015499,2]
[319310823,1710656618836,-511.6246197,0.00015499,2]
[319310824,1710656618859,-500.0,0.00015499,2]
[319310825,1710656618880,-500.0,0.00015499,2]
[319310826,1710656618902,-500.0,0.00015499,2]
[319310827,1710656618925,-500.0,0.00015499,2]
[319310828,1710656618946,-203.28,0.00015499,2]
[319310829,1710656618966,-436.42,0.00015499,2]
[319310830,1710656618987,-500.0,0.00015499,2]
[319310831,1710656619008,-269.04,0.00015499,2]
[319310832,1710656619029,-500.0,0.00015499,2]
[319310833,1710656619049,-500.0,0.00015499,2]
[319310834,1710656619070,-500.0,0.00015499,2]
[319310835,1710656619091,-500.0,0.00015499,2]
[319310836,1710656619112,-500.0,0.00015499,2]
[319310837,1710656619132,-500.0,0.00015499,2]
[319310838,1710656619153,-500.0,0.00015499,2]
[319310839,1710656619174,-500.0,0.00015499,2]
[319310840,1710656619194,-500.0,0.00015499,2]
[319310841,1710656619215,-500.0,0.00015499,2]
[319310842,1710656619236,-641.07,0.00015499,2]
[319310843,1710656619257,-500.0,0.00015499,2]
[319310844,1710656619279,-500.0,0.00015499,2]
[319310845,1710656619299,-500.0,0.00015499,2]
[319310846,1710656619320,-500.0,0.00015499,2]
[319310847,1710656619340,-500.0,0.00015499,2]
[319310848,1710656619361,-500.0,0.00015499,2]
[319310849,1710656619387,-506.7738455,0.00015499,2]
[319310850,1710656619407,-218.6,0.00015499,2]
[319310851,1710656619429,-500.0,0.00015499,2]
[319310852,1710656619449,-500.0,0.00015499,2]
[319310853,1710656619470,-500.0,0.00015499,2]
[319310854,1710656619494,-500.0,0.00015499,2]
[319310855,1710656619516,-500.0,0.00015499,2]
[319310856,1710656619538,-500.0,0.00015499,2]
[319310857,1710656619559,-500.0,0.00015499,2]
[319310858,1710656619580,-500.0,0.00015499,2]
[319310859,1710656619603,-406.48,0.00015499,2]
[319310860,1710656619624,-500.0,0.00015499,2]
[319310861,1710656619650,-500.0,0.00015499,2]
[319310862,1710656619672,-500.0,0.00015499,2]
[319310863,1710656619694,-500.0,0.00015499,2]
[319310864,1710656619714,-500.0,0.00015499,2]
[319310865,1710656619734,-500.0,0.00015499,2]
[319310866,1710656619755,-500.0,0.00015499,2]
[319310867,1710656619778,-500.0,0.00015499,2]
[319310868,1710656619802,-500.0,0.00015499,2]
[319310869,1710656619824,-500.0,0.00015499,2]
[319310870,1710656619846,-500.0,0.00015499,2]
[319310871,1710656619867,-500.0,0.00015499,2]
[319310872,1710656619893,-500.0,0.00015499,2]
[319310873,1710656619914,-648.0,0.000155,2]
[319310874,1710656619940,-38109281.55707071,0.000155,2]
[319310875,1710656620165,473.84,0.00012016,2]
[319310876,1710656823411,2118.0,0.00013,2]
[319310877,1710656851343,1049.6357826,0.0001274,2]
[319310878,1710656880227,246.0,0.00013,2]
[319310879,1710656885314,1141.96184188,0.00012485,2]
[319310880,1710656906271,1020.75825083,0.00012235,2]
[319310881,1710656927292,1002.85110641,0.0001199,2]
[319310882,1710656954350,1832.14554061,0.0001175,2]
[319310884,1710656969321,2035.67111701,0.00012235,2]
[319310885,1710656970942,290.93210037,0.00012235,2]
[319310901,1710657031594,-412.77292295,0.00013696,2]
[319310902,1710657031657,-11.30743871,0.00013696,2]
[319310903,1710657031667,-274.87448401,0.00013696,2]
[319310904,1710657031680,-176.29443435,0.00013696,2]
[319310905,1710657031690,-494.16369194,0.00013697,2]
[319310906,1710657031702,-456.0416,0.00013697,2]
[319310907,1710657031714,-1733.56127489,0.00013697,2]
[319310908,1710657031778,-322.50365821,0.00013697,2]
[319310909,1710657031789,-4475.38676798,0.00013697,2]
[319310910,1710657031800,-387.51100691,0.00013697,2]
[319310911,1710657031890,-20609.7678894,0.00013697,2]
[319310912,1710657031901,-150.0,0.00013697,2]
[319310913,1710657031910,-1052.89324976,0.00013698,2]
[319310914,1710657031921,-4171.39722441,0.00013698,2]
[319310915,1710657031931,-284.86,0.00013699,2]
[319310916,1710657031941,-569.34,0.00014219,2]
[319310917,1710657032233,-150.0,0.00014219,2]
[319310918,1710657032243,-176.71089109,0.0001428,2]
[319310919,1710657032253,-176.71089109,0.0001428,2]
[319310920,1710657032263,-176.71089109,0.0001428,2]
[319310921,1710657032272,-473.84,0.0001428,2]
[319310922,1710657032282,-172.58,0.00014373,2]
[319310923,1710657032292,-309.25214321,0.00014479,2]
[319310924,1710657032302,-152.0,0.00014547,2]
[319310925,1710657032315,-170.223598,0.00014579,2]
[319310926,1710657032325,-18906.81,0.00014694,2]
[319310927,1710657032334,-186.3,0.00014765,2]
[319310928,1710657032345,-262.16,0.00014765,2]
[319310929,1710657032356,-250.0,0.00014788,2]
[319310930,1710657032366,-170.223598,0.00014822,2]
[319310931,1710657032376,-5194.1501,0.000149,2]
[319310932,1710657032385,-7884.14817861,0.00015,2]
[319310933,1710657032395,-3708.0,0.00015,2]
[319310934,1710657032405,-321.69071645,0.00015,2]
[319310935,1710657032414,-155.0,0.00015,2]
[319310936,1710657032425,-170.223598,0.00015065,2]
[319310937,1710657032434,-210.0,0.00015066,2]
[319310938,1710657032443,-3001.7023,0.00015245,2]
[319310939,1710657032452,-150.99,0.00015245,2]
[319310940,1710657032462,-170.223598,0.00015308,2]
[319310941,1710657032474,-196.057067,0.00015342,2]
[319310942,1710657032486,-6910.34411375,0.00015345,2]
[319310943,1710657032494,-3732.23,0.00015345,2]
[319310944,1710657032504,-3000.0,0.0001535,2]
[319310945,1710657032513,-634.31525619,0.0001535,2]
[319310946,1710657032522,-167.56932319,0.00015398,2]
[319310947,1710657032532,-158.82495527,0.00015398,2]
[319310948,1710657032541,-5196.4372,0.00015398,2]
[319310949,1710657032550,-2252.99003481,0.000154,2]
[319310950,1710657032561,-2639.0,0.000154,2]
[319310951,1710657032571,-4330.89369876,0.000154,2]
[319310952,1710657032581,-5800.0,0.000154,2]
[319310953,1710657032590,-180.6647,0.000154,2]
[319310954,1710657032600,-167.56932319,0.000154,2]
[319310955,1710657032609,-10587.1192,0.000154,2]
[319310956,1710657032618,-410.1534,0.000154,2]
[319310957,1710657032628,-11442.9828,0.000154,2]
[319310958,1710657032637,-5688.625,0.00015451,2]
[319310959,1710657032647,-151.93,0.00015451,2]
[319310960,1710657032656,-2436.829,0.00015451,2]
[319310961,1710657032666,-42865.0,0.00015451,2]
[319310962,1710657032676,-4760.0,0.00015451,2]
[319310963,1710657032686,-1044.0,0.00015451,2]
[319310964,1710657032695,-457.0,0.00015451,2]
[319310965,1710657032705,-660.965,0.00015451,2]
[319310966,1710657032714,-208.34986372,0.00015488,2]
[319310967,1710657032726,-155.63917144,0.00015494,2]
[319310968,1710657032736,-1951.33254364,0.00015496,2]
[319310969,1710657032748,-2150.16282483,0.00015496,2]
[319310970,1710657032758,-165.53329579,0.00015496,2]
[319310971,1710657032768,-161.78015288,0.00015496,2]
[319310972,1710657032777,-211.70699209,0.00015496,2]
[319310973,1710657032787,-271.55242602,0.00015496,2]
[319310974,1710657032796,-206.77933376,0.00015496,2]
[319310975,1710657032806,-184.72118084,0.00015496,2]
[319310976,1710657032815,-4517.94785146,0.00015496,2]
[319310977,1710657032825,-232.02004745,0.00015496,2]
[319310978,1710657032834,-514.20463097,0.00015496,2]
[319310979,1710657032844,-199.1190511,0.00015496,2]
[319310980,1710657032860,-643.80285477,0.00015496,2]
[319310981,1710657032874,-155.0,0.00015496,2]
[319310982,1710657032885,-155.35223061,0.00015496,2]
[319310983,1710657032894,-741.20580818,0.00015496,2]
[319310984,1710657032904,-6213.51582172,0.00015496,2]
[319310985,1710657032915,-203.49018601,0.00015497,2]
[319310986,1710657032924,-232.72387657,0.00015497,2]
[319310987,1710657032935,-156.51132444,0.00015497,2]
[319310988,1710657032945,-155.69533176,0.00015497,2]
[319310989,1710657032955,-217.06708636,0.00015497,2]
[319310990,1710657032966,-200.0,0.00015497,2]
[319310991,1710657032979,-290.0615947,0.00015497,2]
[319310992,1710657032989,-500.0,0.00015497,2]
[319310993,1710657032998,-435.22816525,0.00015497,2]
[319310994,1710657033007,-500.0,0.00015497,2]
[319310995,1710657033017,-500.0,0.00015497,2]
[319310996,1710657033026,-500.0,0.00015497,2]
[319310997,1710657033036,-500.0,0.00015497,2]
[319310998,1710657033045,-462.88282882,0.00015497,2]
[319310999,1710657033056,-10483.80047947,0.00015498,2]
[319311000,1710657033065,-23174.11530445,0.00015498,2]
[319311001,1710657033075,-2341.79461688,0.00015498,2]
[319311002,1710657033086,-14044.0731128,0.00015498,2]
[319311025,1710657037568,-294.3946891,0.00013695,2]
[319311027,1710657037578,-4302.00755965,0.00013695,2]
[319311029,1710657037587,-1022984.60840799,0.00013696,2]
[319311030,1710657037596,-308.04831953,0.00015497,2]
[319311031,1710657037607,-13516.03452712,0.00015498,2]
[319311032,1710657037618,-166.07871829,0.00015498,2]
[319311033,1710657037627,-220.3776993,0.00015498,2]
[319311034,1710657037637,-775.19834796,0.00015498,2]
[319311035,1710657037648,-265.53164377,0.00015498,2]
[319311036,1710657037658,-974.20290702,0.00015498,2]
[319311037,1710657037667,-500.0,0.00015498,2]
[319311038,1710657037677,-520.62524445,0.00015498,2]
[319311039,1710657037686,-231.84206525,0.00015498,2]
[319311040,1710657037696,-199.57338672,0.00015498,2]
[319311041,1710657037706,-200.70455294,0.00015498,2]
[319311042,1710657037715,-155.35089844,0.00015498,2]
[319311043,1710657037727,-155.15557872,0.00015498,2]
[319311044,1710657037736,-583.80287966,0.00015498,2]
[319311045,1710657037745,-442.00393974,0.00015498,2]
[319311046,1710657037755,-311139.70810359,0.00015498,2]
[319311047,1710657037766,-3629.0040558,0.00015498,2]
[319311048,1710657037788,-59137.93266068,0.00015498,2]
[319311049,1710657037799,-24758.08253506,0.00015498,2]
[319311050,1710657037818,-635.92762552,0.00015498,2]
[319311058,1710657038071,-440.0,0.00015498,2]
[319311059,1710657038083,-66000.00000001,0.00015498,2]
[319311060,1710657038093,-1212016.15414958,0.00015498,2]
[319311062,1710657038102,-155.25587088,0.00015498,2]
[319311064,1710657038110,-54879.33691507,0.00015498,2]
[319311066,1710657038119,-231.52094726,0.00015498,2]
[319311068,1710657038128,-484.60757585,0.00015498,2]
[319311069,1710657038137,-155.01974303,0.00015498,2]
[319311071,1710657038146,-204.88114341,0.00015498,2]
[319311074,1710657038155,-155.42568585,0.00015498,2]
[319311075,1710657038164,-10540.67804284,0.00015498,2]
[319311077,1710657038173,-498.68481426,0.00015498,2]
[319311080,1710657038182,-1234.68323899,0.00015498,2]
[319311082,1710657038191,-598.90335726,0.00015498,2]
[319311083,1710657038200,-260.16629926,0.00015498,2]
[319311084,1710657038209,-234.82875433,0.00015498,2]
[319311085,1710657038219,-500.0,0.00015499,2]
[319311086,1710657038234,-500.0,0.00015499,2]